bitfinex-derivatives/quotes_SOLF0:USTF0_20250626
["timestamp","ask_amount","ask_price","bid_price","bid_amount"]
[1750913584326,34.9,145.03,145.02,8.5923701]
[1750913585727,41.792,145.03,145.02,8.5923701]
[1750913585929,34.9,145.03,145.02,8.5923701]
[1750913586529,45.21427408,145.03,145.02,8.5923701]
[1750913586733,38.32227408,145.03,145.01,8.5923701]
[1750913587638,6.8925,145.02,145.01,8.5923701]
[1750913587939,6.8925,145.02,145.0,8.5923701]
[1750913591937,46.09797729,145.03,145.0,8.5923701]
[1750913592132,34.9,145.03,145.02,8.5923701]
[1750913592335,38.28217628,145.06,145.02,8.5923701]
[1750913592533,34.86,145.06,145.05,6.4475377]
[1750913593343,34.86,145.06,145.04,15.4835701]
[1750913593535,34.86,145.06,145.04,8.5923701]
[1750913596738,34.86,145.06,145.04,15.4838701]
[1750913597945,34.86,145.06,145.04,8.5923701]
[1750913599241,41.7506,145.06,145.04,8.5923701]
[1750913599443,34.86,145.06,145.04,15.4838701]
[1750913599944,34.86,145.06,145.04,8.5923701]
[1750913600442,34.86,145.06,145.05,6.43485542]
[1750913605747,34.86,145.06,145.04,15.4836701]
[1750913605948,34.86,145.06,145.04,8.5923701]
[1750913606745,34.86,145.06,145.05,6.4306233]
[1750913608641,41.7506,145.06,145.05,6.4306233]
[1750913608846,38.28016378,145.06,145.04,6.4306233]
[1750913609453,6.891,145.05,145.04,6.4306233]
[1750913610346,34.86,145.06,145.04,6.4306233]
[1750913610849,34.86,145.06,145.0,137.68597633]
[1750913610850,34.86,145.06,145.05,6.4306233]
[1750913611248,633.60016378,145.09,145.05,6.4306233]
[1750913611445,633.60016378,145.09,145.06,6.4306233]
[1750913611848,640.48956378,145.09,145.06,6.4306233]
[1750913612152,633.60016378,145.09,145.06,6.4306233]
[1750913612353,640.48946378,145.09,145.06,6.4306233]
[1750913612648,633.60016378,145.09,145.05,6.4306233]
[1750913612949,6.8899,145.08,145.05,6.4306233]
[1750913614252,6.8901,145.07,145.05,6.4306233]
[1750913614444,3.42016378,145.07,145.05,6.4306233]
[1750913614756,3.42016378,145.07,145.04,6.4306233]
[1750913614953,6.8908,145.06,145.04,6.4306233]
[1750913615452,6.891,145.05,145.04,6.4306233]
[1750913615650,45.15116378,145.05,145.04,6.4306233]
[1750913616956,6.8915,145.04,145.03,6.4306233]
[1750913617253,6.8915,145.04,145.0,6.8932]
[1750913617853,6.892,145.03,144.99,11.7233]
[1750913618242,6.8926,145.02,144.99,4.8295]
[1750913618457,6.8926,145.02,144.98,6.8943]
[1750913619064,6.893,145.01,144.97,9.1605]
[1750913619448,3.42016378,145.01,144.95,5.6631612]
[1750913619655,3.42494662,144.98,144.95,5.6631612]
[1750913620263,10.31964662,144.98,144.95,5.6631612]
[1750913620463,3.42494662,144.98,144.95,5.6631612]
[1750913620762,34.84,144.97,144.95,5.6631612]
[1750913622060,3.42393056,145.0,144.96,6.8953]
[1750913622061,38.26393056,145.0,144.96,6.8953]
[1750913622361,6.8942,144.99,144.95,5.6631612]
[1750913622564,38.26393056,145.0,144.95,5.6631612]
[1750913622768,6.8939,144.99,144.95,5.6631612]
[1750913623468,45.15753056,145.0,144.96,6.8951]
[1750913623660,38.26393056,145.0,144.95,5.6631612]
[1750913624056,34.84,145.0,144.95,10.3082612]
[1750913624363,34.84,145.0,144.98,6.8943]
[1750913625772,34.84,145.0,144.99,6.8939]
[1750913626364,3.42393056,145.02,144.98,15.47200098]
[1750913626569,10.31673056,145.02,145.0,6.43252499]
[1750913627267,45.15673056,145.02,145.0,6.43252499]
[1750913627567,10.31673056,145.02,145.0,6.43252499]
[1750913627766,38.26393056,145.02,145.0,6.43252499]
[1750913628466,38.26393056,145.02,145.01,6.8929]
[1750913628467,34.84,145.02,145.01,6.8929]
[1750913628670,34.84,145.07,145.0,12.86670148]
[1750913628961,34.84,145.07,145.05,6.43105323]
[1750913629168,41.7302,145.07,145.05,6.43105323]
[1750913629362,34.84,145.07,145.05,6.43105323]
[1750913630570,41.7301,145.07,145.05,6.43105323]
[1750913631270,41.7301,145.07,145.04,6.43105323]
[1750913633474,6.8909,145.06,145.04,6.43105323]
[1750913634268,10.31483056,145.06,145.04,6.43105323]
[1750913635377,6.891,145.05,145.04,6.43105323]
[1750913636266,6.8915,145.04,145.03,6.43105323]
[1750913639682,6.8911,145.05,145.03,6.43105323]
[1750913641277,3.42393056,145.06,145.04,6.43105323]
[1750913643086,10.31453056,145.06,145.04,6.43105323]
[1750913643780,45.15403056,145.07,145.04,6.43105323]
[1750913644180,39.14981203,145.07,145.05,6.43105323]
[1750913644376,633.60393056,145.09,145.06,6.43105323]
[1750913645378,34.84,145.09,145.06,6.43105323]
[1750913645574,34.84,145.09,145.08,6.43105323]
[1750913646372,34.84,145.09,145.07,6.43105323]
[1750913647981,41.7293,145.09,145.07,6.43105323]
[1750913650081,34.84,145.09,145.07,6.43105323]
[1750913650676,41.7293,145.09,145.07,6.43105323]
[1750913651182,34.84,145.09,145.07,13.32095323]
[1750913653282,34.84,145.09,145.07,6.43105323]
[1750913653778,41.7292,145.09,145.07,6.43105323]
[1750913654284,34.84,145.09,145.07,6.43105323]
[1750913655589,34.84,145.09,145.07,13.32115323]
[1750913659790,34.84,145.09,145.07,6.43105323]
[1750913664403,34.84,145.09,145.07,13.32105323]
[1750913664804,34.82,145.12,145.1,6.8883]
[1750913665108,3.42393056,145.13,145.1,6.8883]
[1750913665306,8.23249424,145.13,145.1,6.8883]
[1750913665505,3.42393056,145.13,145.1,6.8883]
[1750913666009,39.62856368,145.14,145.11,6.8881]
[1750913666211,34.82,145.14,145.11,13.31303777]
[1750913666710,34.82,145.14,145.11,6.42493777]
[1750913666901,34.82,145.17,145.13,6.42493777]
[1750913667208,34.82,145.17,145.15,6.4192986]
[1750913667409,34.82,145.2,145.15,6.4192986]
[1750913667603,34.82,145.2,145.17,6.4192986]
[1750913668309,34.82,145.2,145.18,6.4192986]
[1750913668499,38.24393056,145.23,145.18,6.4192986]
[1750913668705,3.42393056,145.21,145.17,6.4192986]
[1750913669005,3.42393056,145.21,145.16,131.4192986]
[1750913669207,3.42393056,145.21,145.17,6.4192986]
[1750913669401,3.42393056,145.21,145.18,6.8848]
[1750913669908,6.8831,145.22,145.19,6.8843]
[1750913670110,34.82,145.23,145.17,9.84322916]
[1750913670307,34.82,145.23,145.2,6.8836]
[1750913670509,41.7025,145.23,145.17,3.42393056]
[1750913671309,41.7025,145.23,145.19,6.884]
[1750913671508,41.7025,145.23,145.17,3.42393056]
[1750913672504,41.7025,145.23,145.19,6.8841]
[1750913672906,6.883,145.22,145.19,6.8841]
[1750913673211,6.883,145.22,145.16,125.0]
[1750913673212,3.42393056,145.22,145.16,125.0]
[1750913673908,6.8836,145.21,145.16,125.0]
[1750913674911,6.8836,145.21,145.17,6.8852]
[1750913675606,10.30703056,145.22,145.18,6.8847]
[1750913676412,6.8834,145.21,145.17,6.8852]
[1750913677313,6.884,145.2,145.16,131.8856]
[1750913677508,3.42393056,145.22,145.16,6.8856]
[1750913677703,3.42393056,145.22,145.13,167.98333056]
[1750913678113,6.8836,145.21,145.13,167.98333056]
[1750913680621,6.8836,145.21,145.17,6.8851]
[1750913681216,3.42393056,145.22,145.17,6.8851]
[1750913681618,6.8837,145.21,145.17,6.8851]
[1750913681920,3.42393056,145.22,145.17,6.8851]
[1750913683517,6.8839,145.2,145.17,6.8851]
[1750913683715,3.42393056,145.22,145.17,6.8851]
[1750913684022,3.42393056,145.22,145.18,6.8849]
[1750913684322,41.703,145.23,145.13,167.98333056]
[1750913684323,3.42393056,145.2,145.13,167.98333056]
[1750913684620,10.30793056,145.2,145.16,6.8855]
[1750913685323,6.8846,145.19,145.16,6.8855]
[1750913685519,3.42393056,145.18,145.14,6.8863]
[1750913686026,10.30893056,145.18,145.14,6.8863]
[1750913686221,3.42393056,145.18,145.13,129.7394]
[1750913687524,10.30893056,145.18,145.14,6.8866]
[1750913690328,6.885,145.18,145.14,6.8866]
[1750913690629,3.42393056,145.17,145.14,6.8866]
[1750913691628,3.42393056,145.17,145.15,6.8862]
[1750913695129,38.20393056,145.19,145.16,6.8858]
[1750913697716,45.08843056,145.19,145.16,6.8858]
[1750913697922,45.08843056,145.19,145.15,6.8861]
[1750913698634,45.08843056,145.19,145.16,6.8858]
[1750913699827,41.6645,145.19,145.16,6.8858]
[1750913700131,38.20393056,145.19,145.16,6.8858]
[1750913701433,45.08843056,145.19,145.16,6.8858]
[1750913702232,38.20393056,145.19,145.17,6.8852]
[1750913702729,34.78,145.19,145.13,133.16333056]
[1750913703532,34.78,145.19,145.17,6.8851]
[1750913703935,34.78,145.19,145.13,133.16333056]
[1750913704136,34.78,145.19,145.18,6.8849]
[1750913704933,34.78,145.19,145.17,6.8852]
[1750913705235,3.42393056,145.21,145.17,6.8852]
[1750913705435,34.78,145.2,145.17,6.8852]
[1750913705734,6.8842,145.2,145.17,6.8852]
[1750913705937,41.6642,145.2,145.17,6.8852]
[1750913706326,34.78,145.2,145.18,6.8849]
[1750913707128,34.78,145.2,145.15,8.57473764]
[1750913707325,34.78,145.2,145.15,133.57473764]
[1750913707525,4.87108471,145.23,145.15,133.57473764]
[1750913707526,38.20393056,145.23,145.16,8.57473764]
[1750913707834,38.20393056,145.23,145.17,8.57473764]
[1750913708438,45.08643056,145.23,145.2,6.8836]
[1750913709036,41.6625,145.23,145.2,6.8836]
[1750913709227,34.78,145.23,145.2,6.8836]
[1750913709428,34.78,145.23,145.21,6.8833]
[1750913709736,34.78,145.23,145.18,15.60763764]
[1750913709942,34.78,145.23,145.18,140.60763764]
[1750913710237,6.8819,145.25,145.21,6.8831]
[1750913710444,4.89465823,145.24,145.21,6.8831]
[1750913710738,8.31858879,145.24,145.2,6.8838]
[1750913711336,6.8828,145.23,145.2,6.8838]
[1750913711636,6.8828,145.23,145.19,15.45893764]
[1750913711937,6.8828,145.23,145.19,8.57473764]
[1750913713439,6.8828,145.23,145.2,6.8839]
[1750913714943,15.20078879,145.24,145.2,6.8839]
[1750913715241,8.31858879,145.24,145.2,6.8839]
[1750913715440,8.31858879,145.24,145.21,6.8834]
[1750913716441,15.20088879,145.24,145.21,6.8834]
[1750913716846,11.77695823,145.24,145.21,6.8834]
[1750913717046,15.20088879,145.24,145.2,6.8837]
[1750913717346,6.8826,145.23,145.2,6.8837]
[1750913717546,8.31858879,145.24,145.19,8.57473764]
[1750913718051,8.31858879,145.24,145.18,138.30643764]
[1750913718232,7.82117289,145.24,145.18,138.30643764]
[1750913718436,3.42393056,145.24,145.18,138.30643764]
[1750913718643,6.883,145.22,145.19,6.8842]
[1750913719037,34.78,145.23,145.19,6.8842]
[1750913719540,41.6627,145.23,145.2,6.8838]
[1750913720640,34.78,145.23,145.2,6.8838]
[1750913721150,34.78,145.23,145.21,6.8834]
[1750913722149,9.31418726,145.25,145.2,3.41258374]
[1750913722352,34.78,145.28,145.22,8.57473764]
[1750913722644,39.68087306,145.28,145.22,8.57473764]
[1750913724351,6.8809,145.27,145.24,6.8817]
[1750913725450,6.8812,145.26,145.23,6.8823]
[1750913725748,3.41258374,145.25,145.2,127.3619]
[1750913725954,10.29438374,145.25,145.21,6.8833]
[1750913726158,6.8818,145.25,145.2,2.3619]
[1750913726450,6.8818,145.25,145.2,10.93663764]
[1750913727154,10.29378374,145.26,145.2,10.93663764]
[1750913727343,6.8812,145.26,145.2,14.34922138]
[1750913727548,6.8812,145.26,145.21,8.57473764]
[1750913727747,6.8808,145.27,145.21,8.57473764]
[1750913728250,6.8808,145.27,145.23,6.882]
[1750913728451,6.8808,145.27,145.2,14.34922138]
[1750913728452,6.8808,145.27,145.2,139.34922138]
[1750913729449,38.19258374,145.28,145.2,139.34922138]
[1750913729754,38.19258374,145.28,145.21,8.57473764]
[1750913730155,6.8812,145.26,145.23,6.8821]
[1750913730848,6.8812,145.26,145.22,6.8828]
[1750913732357,6.8812,145.26,145.23,6.8824]
[1750913733359,6.8808,145.27,145.23,6.8824]
[1750913734563,6.8808,145.27,145.24,6.8819]
[1750913734757,45.07278374,145.28,145.21,125.0]
[1750913735062,45.07278374,145.28,145.21,133.57473764]
[1750913735256,41.6602,145.28,145.25,6.8813]
[1750913735669,34.78,145.28,145.22,11.98732138]
[1750913735958,34.78,145.28,145.23,4.8143]
[1750913736463,34.78,145.28,145.25,6.8813]
[1750913736464,41.6604,145.28,145.25,6.8813]
[1750913737664,34.78,145.28,145.24,6.8818]
[1750913738367,3.41031507,145.27,145.21,133.57473764]
[1750913739562,6.8814,145.26,145.23,6.8824]
[1750913740571,6.8814,145.26,145.22,6.8828]
[1750913742572,632.99093386,145.31,145.24,11.9856715]
[1750913742776,632.99093386,145.31,145.24,136.9856715]
[1750913743264,6.8795,145.3,145.26,6.881]
[1750913744068,6.8797,145.29,145.25,6.8813]
[1750913744576,6.8801,145.28,145.25,6.8813]
[1750913744872,4.91206779,145.3,145.24,131.8818]
[1750913745170,6.8808,145.27,145.24,131.8818]
[1750913745965,3.41093386,145.29,145.25,6.8815]
[1750913746367,10.29073386,145.29,145.25,6.8815]
[1750913746766,632.99093386,145.31,145.26,6.881]
[1750913746976,632.99093386,145.31,145.24,125.0]
[1750913746977,629.58,145.31,145.24,136.9856715]
[1750913747165,34.74,145.31,145.26,3.41093386]
[1750913747370,11.79119277,145.33,145.26,128.41093386]
[1750913747567,16.21511562,145.33,145.26,128.41093386]
[1750913747766,16.21511562,145.33,145.3,6.8789]
[1750913748269,11.79119277,145.33,145.3,6.8789]
[1750913748964,34.74,145.34,145.31,6.8783]
[1750913749770,41.6175,145.34,145.3,6.879]
[1750913749970,3.40751928,145.31,145.26,133.57473764]
[1750913750175,3.40751928,145.31,145.25,135.80783764]
[1750913750377,3.40751928,145.31,145.28,6.8798]
[1750913751582,10.28631928,145.31,145.27,6.8804]
[1750913752080,6.8783,145.32,145.28,6.8799]
[1750913752281,6.8783,145.32,145.25,139.21535692]
[1750913753282,6.8787,145.31,145.28,6.8798]
[1750913754080,6.8783,145.32,145.28,6.8798]
[1750913756087,6.8783,145.32,145.26,8.57473764]
[1750913756686,6.8783,145.32,145.29,6.8795]
[1750913758588,15.2273633,145.33,145.29,6.8795]
[1750913759090,6.8783,145.32,145.29,6.8795]
[1750913760589,10.28541928,145.33,145.29,6.8795]
[1750913760891,10.28541928,145.33,145.3,6.8792]
[1750913762782,6.8779,145.33,145.3,6.8792]
[1750913762992,45.02501928,145.34,145.3,6.8792]
[1750913763587,50.03302535,145.34,145.3,6.8792]
[1750913763781,46.62550607,145.34,145.3,6.8792]
[1750913763986,50.03302535,145.34,145.3,6.8792]
[1750913764193,45.02501928,145.34,145.3,6.8792]
[1750913764696,6.8779,145.33,145.3,6.8792]
[1750913764890,6.8779,145.33,145.29,6.8795]
[1750913765695,38.14751928,145.34,145.28,6.8799]
[1750913765899,5.00870806,145.33,145.28,6.8799]
[1750913766097,594.5,145.38,145.27,3.40866669]
[1750913766296,3.40866669,145.36,145.28,38.10866669]
[1750913766598,8.42369052,145.35,145.28,46.68340433]
[1750913766796,3.40866669,145.35,145.31,6.8786]
[1750913767295,15.29999001,145.35,145.31,6.8783]
[1750913767596,10.28576669,145.35,145.31,6.8783]
[1750913767796,15.29999001,145.35,145.31,6.8783]
[1750913770299,10.28576669,145.35,145.31,6.8783]
[1750913770999,6.8773,145.34,145.31,6.8783]
[1750913773400,10.28566669,145.35,145.32,6.8781]
[1750913774003,6.8773,145.34,145.31,6.8786]
[1750913774203,34.7,145.37,145.29,3.40696421]
[1750913774503,6.877,145.35,145.31,6.8784]
[1750913774806,3.40696421,145.36,145.28,172.94363764]
[1750913774996,3.40696421,145.34,145.28,164.3689]
[1750913775302,34.7,145.33,145.28,127.4179]
[1750913775492,34.7,145.33,145.28,2.4179]
[1750913775999,46.60418462,145.33,145.28,2.4179]
[1750913776299,46.60418462,145.33,145.29,6.8793]
[1750913777603,34.7,145.33,145.28,2.4179]
[1750913777907,34.7,145.33,145.28,10.99263764]
[1750913778606,34.7,145.33,145.31,6.8786]
[1750913779698,34.7,145.33,145.29,11.98170185]
[1750913779908,39.71926924,145.36,145.31,3.40696421]
[1750913780096,34.7,145.36,145.31,3.40696421]
[1750913780302,41.5765,145.36,145.33,6.8775]
[1750913781503,34.7,145.36,145.33,6.8775]
[1750913781711,34.7,145.36,145.34,6.8771]
[1750913782015,34.7,145.36,145.31,3.40696421]
[1750913782508,39.71867671,145.36,145.31,3.40696421]
[1750913782810,34.7,145.36,145.31,14.35430185]
[1750913783203,34.7,145.36,145.35,6.8768]
[1750913783406,5.01814545,145.37,145.35,6.8768]
[1750913783606,4.48328977,145.38,145.35,6.8768]
[1750913783907,5.01905296,145.37,145.35,6.8768]
[1750913784097,11.35868977,145.38,145.35,6.8768]
[1750913784303,5.034146,145.37,145.35,6.8768]
[1750913784500,11.35868977,145.38,145.35,6.8768]
[1750913784703,5.03460794,145.37,145.35,6.8768]
[1750913784910,11.35868977,145.38,145.35,6.8768]
[1750913785110,5.03460794,145.37,145.35,6.8768]
[1750913785302,11.35868977,145.38,145.35,6.8768]
[1750913785502,5.03440492,145.37,145.35,6.8768]
[1750913785703,11.35868977,145.38,145.35,6.8768]
[1750913786011,5.03383658,145.37,145.35,6.8768]
[1750913786200,11.35868977,145.38,145.35,6.8768]
[1750913786405,5.03324221,145.37,145.35,6.8768]
[1750913786607,11.35868977,145.38,145.35,6.8768]
[1750913786808,5.03464771,145.37,145.35,6.8768]
[1750913787004,4.48328977,145.38,145.35,6.8768]
[1750913787311,5.03465337,145.37,145.35,6.8768]
[1750913787509,4.48328977,145.38,145.35,6.8768]
[1750913787708,5.03581219,145.37,145.35,6.8768]
[1750913787909,4.48328977,145.38,145.35,6.8768]
[1750913788111,5.03578195,145.37,145.35,6.8768]
[1750913788308,4.48328977,145.38,145.35,6.8768]
[1750913788502,5.03550049,145.37,145.35,6.8768]
[1750913788814,4.48328977,145.38,145.35,6.8768]
[1750913789007,5.03549766,145.37,145.35,6.8768]
[1750913789207,11.35878977,145.38,145.35,6.8768]
[1750913789408,5.03491067,145.37,145.35,6.8768]
[1750913789710,4.48328977,145.38,145.36,6.8762]
[1750913789905,34.7,145.39,145.36,6.8762]
[1750913790101,5.03581395,145.38,145.36,6.8762]
[1750913790305,34.7,145.39,145.36,6.8762]
[1750913790505,5.03632682,145.38,145.36,6.8762]
[1750913790706,34.7,145.39,145.37,6.8758]
[1750913790910,5.03632682,145.38,145.37,6.8758]
[1750913791306,5.03632682,145.38,145.33,139.29300185]
[1750913791502,39.18940546,145.39,145.36,6.8762]
[1750913791707,5.03631585,145.38,145.33,139.29300185]
[1750913791908,39.18940546,145.39,145.36,6.876]
[1750913792209,34.7,145.39,145.33,173.99300185]
[1750913792515,4.48906865,145.4,145.34,10.81863764]
[1750913792720,38.10696421,145.46,145.38,11.98170185]
[1750913792909,9.52919047,145.45,145.39,8.57473764]
[1750913793117,41.5717,145.46,145.4,3.40696421]
[1750913793313,34.7,145.46,145.4,11.98170185]
[1750913793513,34.7,145.46,145.4,3.40696421]
[1750913793717,34.7,145.46,145.44,6.8725]
[1750913794217,6.8721,145.45,145.41,15.44833764]
[1750913794421,6.8721,145.45,145.41,6.8736]
[1750913794811,34.7,145.46,145.39,141.55410185]
[1750913794812,38.10696421,145.46,145.39,141.55410185]
[1750913795019,6.8726,145.44,145.4,6.8741]
[1750913795417,34.7,145.46,145.39,16.55410185]
[1750913796220,6.8722,145.45,145.41,6.8736]
[1750913796513,6.8722,145.45,145.39,16.55410185]
[1750913796514,34.7,145.46,145.39,16.55410185]
[1750913796820,41.5718,145.46,145.39,16.55410185]
[1750913797116,41.5718,145.46,145.39,7.97936421]
[1750913798116,41.5718,145.46,145.42,6.8735]
[1750913799117,34.7,145.46,145.41,3.40696421]
[1750913800021,11.92896205,145.48,145.41,3.40696421]
[1750913800224,6.871,145.48,145.44,6.8722]
[1750913800620,45.55726421,145.49,145.41,3.40696421]
[1750913800816,42.1503,145.49,145.45,6.8718]
[1750913801024,42.1503,145.49,145.41,38.68696421]
[1750913801214,42.1503,145.49,145.45,6.8717]
[1750913802328,35.28,145.49,145.46,6.8712]
[1750913802528,35.28,145.49,145.41,160.28]
[1750913802825,35.28,145.49,145.47,6.8711]
[1750913803517,35.28,145.49,145.46,6.8714]
[1750913804622,35.28,145.49,145.45,6.8719]
[1750913805020,42.1502,145.49,145.45,6.8719]
[1750913805616,35.28,145.49,145.45,6.8719]
[1750913806126,35.28,145.49,145.44,6.8724]
[1750913806320,38.68696421,145.49,145.41,163.68696421]
[1750913806720,6.8715,145.47,145.43,6.8728]
[1750913807533,6.872,145.46,145.42,6.8734]
[1750913807826,38.68696421,145.49,145.42,125.0]
[1750913808227,6.8715,145.47,145.43,6.8727]
[1750913808735,38.68696421,145.49,145.42,125.0]
[1750913809030,35.28,145.49,145.42,125.0]
[1750913809325,6.8715,145.47,145.43,6.8726]
[1750913809634,35.28,145.49,145.43,3.40696421]
[1750913811434,42.1506,145.49,145.45,6.8721]
[1750913811626,35.28,145.49,145.43,128.40696421]
[1750913812331,42.1502,145.49,145.43,128.40696421]
[1750913812529,35.28,145.49,145.43,128.40696421]
[1750913813128,38.68696421,145.49,145.43,128.40696421]
[1750913813328,38.68696421,145.49,145.44,6.8724]
[1750913814238,6.8708,145.48,145.45,6.872]
[1750913814628,45.55736421,145.49,145.45,6.872]
[1750913814934,42.1504,145.49,145.45,6.872]
[1750913816428,6.8707,145.48,145.45,6.872]
[1750913819841,6.8707,145.48,145.44,6.8723]
[1750913820340,6.8707,145.48,145.45,6.8718]
[1750913823646,6.8713,145.47,145.44,6.8725]
[1750913823941,38.68696421,145.49,145.43,125.0]
[1750913824143,43.7396772,145.49,145.43,125.0]
[1750913825344,3.40696421,145.47,145.4,3.40696421]
[1750913825644,6.8724,145.45,145.41,6.8739]
[1750913826352,6.8724,145.45,145.39,129.5724]
[1750913827555,6.8724,145.45,145.42,6.8735]
[1750913828955,6.8724,145.45,145.41,6.8736]
[1750913829457,6.8726,145.44,145.41,6.8736]
[1750913830047,6.8731,145.43,145.39,4.5724]
[1750913830256,3.40696421,145.43,145.37,125.0]
[1750913830458,3.40696421,145.43,145.36,214.48950654]
[1750913831052,3.40696421,145.43,145.36,211.08254233]
[1750913831359,6.8736,145.42,145.39,6.8748]
[1750913833156,15.31188967,145.43,145.39,6.8748]
[1750913833362,35.38,145.45,145.37,3.40696421]
[1750913833555,35.38,145.45,145.38,8.57473764]
[1750913833863,42.2523,145.45,145.41,6.8737]
[1750913836262,5.02678863,145.44,145.41,6.8737]
[1750913836463,46.72655981,145.45,145.41,6.8737]
[1750913836766,5.02643602,145.44,145.39,8.57473764]
[1750913836950,35.38,145.45,145.41,11.98170185]
[1750913837151,5.02687811,145.47,145.41,11.98170185]
[1750913837353,5.02687811,145.46,145.44,6.8721]
[1750913837550,4.47855637,145.47,145.44,6.8721]
[1750913837761,5.03072566,145.46,145.44,6.8721]
[1750913838063,4.47855637,145.47,145.44,6.8721]
[1750913838258,5.03097648,145.46,145.45,6.8721]
[1750913839165,43.26581534,145.48,145.45,6.8721]
[1750913839366,5.03132167,145.47,145.45,6.8721]
[1750913839556,8.43771058,145.46,145.43,8.57473764]
[1750913839861,9.52147063,145.45,145.4,133.57473764]
[1750913840064,40.41074637,145.44,145.4,8.57473764]
[1750913840272,6.873,145.43,145.4,6.8741]
[1750913840863,38.78696421,145.44,145.39,8.57473764]
[1750913841064,11.9244886,145.43,145.39,15.44923764]
[1750913841264,6.8732,145.43,145.39,15.44923764]
[1750913842165,6.8732,145.43,145.4,6.8744]
[1750913842766,6.8732,145.43,145.39,15.44953764]
[1750913843467,6.8732,145.43,145.39,6.8748]
[1750913844366,42.2527,145.44,145.4,6.8744]
[1750913845266,42.2527,145.44,145.39,8.57473764]
[1750913845468,6.8732,145.43,145.39,8.57473764]
[1750913845970,6.8732,145.43,145.39,6.8747]
[1750913850371,6.8732,145.43,145.39,15.44943764]
[1750913850571,42.2527,145.44,145.4,6.8744]
[1750913852274,6.873,145.43,145.4,6.8744]
[1750913852674,39.87131062,145.44,145.39,8.57473764]
[1750913852872,6.8738,145.42,145.38,8.57473764]
[1750913853071,3.40696421,145.43,145.38,8.57473764]
[1750913853273,6.8743,145.41,145.38,8.57473764]
[1750913853475,3.40696421,145.41,145.37,8.57473764]
[1750913853771,6.8753,145.39,145.35,10.83823764]
[1750913853968,3.40696421,145.39,145.34,10.86353764]
[1750913854169,3.40696421,145.39,145.34,2.2888]
[1750913854477,10.28196421,145.39,145.35,6.8764]
[1750913855470,15.28310551,145.39,145.35,6.8764]
[1750913856175,10.28196421,145.39,145.35,6.8764]
[1750913857169,6.8755,145.38,145.35,6.8764]
[1750913857571,6.8751,145.39,145.35,6.8764]
[1750913857770,10.28206421,145.39,145.35,6.8764]
[1750913861474,3.40696421,145.39,145.34,2.2888]
[1750913861884,35.4,145.4,145.34,2.2888]
[1750913862182,35.4,145.4,145.34,135.86353764]
[1750913862682,35.4,145.4,145.38,6.8753]
[1750913866579,42.2745,145.4,145.37,6.8757]
[1750913868385,35.4,145.4,145.37,6.8757]
[1750913870487,35.4,145.4,145.38,6.8753]
[1750913873487,35.4,145.4,145.37,6.8757]
[1750913873878,35.4,145.4,145.35,8.57473764]
[1750913875285,35.4,145.4,145.37,6.8756]
[1750913877493,42.2747,145.4,145.37,6.8756]
[1750913883289,3.40460252,145.39,145.34,10.86353764]
[1750913883791,6.8755,145.38,145.35,6.8765]
[1750913884290,3.40460252,145.39,145.34,8.57473764]
[1750913884995,6.8756,145.38,145.35,6.8764]
[1750913890299,35.4,145.4,145.31,127.4103]
[1750913890300,35.4,145.4,145.32,3.40460252]
[1750913890502,35.4,145.4,145.34,3.40460252]
[1750913890801,35.4,145.4,145.37,6.8755]
[1750913891105,35.4,145.4,145.34,3.40460252]
[1750913892407,41.6743,145.41,145.34,3.40460252]
[1750913892606,41.6743,145.41,145.38,6.8751]
[1750913896813,3.40460252,145.4,145.36,8.56572745]
[1750913897013,3.40460252,145.38,145.36,8.56572745]
[1750913898423,10.28040252,145.38,145.36,8.56572745]
[1750913899126,6.8759,145.37,145.36,8.56572745]
[1750913901015,6.8755,145.38,145.36,8.56572745]
[1750913903313,6.8759,145.37,145.36,8.56572745]
[1750913904224,6.8757,145.38,145.36,8.56572745]
[1750913908028,34.8,145.41,145.36,8.56572745]
[1750913908226,34.8,145.41,145.37,8.56572745]